bitfinex/quotes_BTCUSD_20250420
["timestamp","ask_amount","ask_price","bid_price","bid_amount"]
[1745175143244,0.16784791,84405.0,84403.0,0.01184792]
[1745175143450,0.00296204,84404.0,84403.0,0.01184792]
[1745175143659,0.21674791,84404.0,84403.0,0.01184792]
[1745175143864,0.21774791,84404.0,84403.0,0.01184792]
[1745175146908,0.0489,84402.0,84398.0,0.01184862]
[1745175147128,0.0489,84400.0,84399.0,0.01184848]
[1745175147318,0.16934791,84400.0,84399.0,0.01184848]
[1745175149217,0.17231011,84400.0,84399.0,0.01184848]
[1745175149662,0.17231011,84400.0,84391.0,0.0118496]
[1745175149663,0.0453,84395.0,84391.0,0.0118496]
[1745175149850,0.12241035,84394.0,84392.0,0.01184946]
[1745175150244,0.12341035,84394.0,84392.0,0.01184946]
[1745175150444,0.12341035,84394.0,84391.0,0.01190294]
[1745175150787,0.0453,84392.0,84391.0,0.01190294]
[1745175151045,0.16771034,84392.0,84391.0,0.01190294]
[1745175151303,0.16871034,84392.0,84391.0,5.334e-05]
[1745175160041,0.16871034,84392.0,84366.0,0.24363868]
[1745175160261,0.11944791,84391.0,84389.0,0.01184988]
[1745175160405,0.00296262,84390.0,84389.0,0.01184988]
[1745175160738,0.12241053,84390.0,84389.0,0.01184988]
[1745175160945,0.11944791,84390.0,84389.0,0.01184988]
[1745175177519,0.11944791,84390.0,84366.0,0.15813094]
[1745175177721,0.0453,84392.0,84389.0,0.01184988]
[1745175177921,0.12241054,84391.0,84389.0,0.01184988]
[1745175180550,0.12241054,84391.0,84366.0,0.06470166]
[1745175180750,0.12241054,84391.0,84389.0,0.01184988]
[1745175187658,0.11944791,84391.0,84389.0,0.01184988]
[1745175198419,0.05276264,84390.0,84389.0,0.01184988]
[1745175198625,0.17221055,84390.0,84389.0,0.01184988]
[1745175214813,0.17221055,84390.0,84366.0,0.33898428]
[1745175215023,0.11944791,84389.0,84388.0,0.01185002]
[1745175260039,0.0972,84396.0,84388.0,0.01185002]
[1745175260235,0.0972,84396.0,84379.0,0.19876266]
[1745175260236,0.21664791,84396.0,84379.0,0.19876266]
[1745175263510,0.21664791,84396.0,84380.0,0.34]
[1745175266744,0.21664791,84396.0,84380.0,0.341]
[1745175269950,0.21664791,84396.0,84380.0,0.34]
[1745175270709,0.0972,84396.0,84380.0,0.341]
[1745175270940,0.0972,84396.0,84380.0,0.34]
[1745175274011,0.0484,84399.0,84380.0,0.34]
[1745175274175,0.0485226,84399.0,84380.0,0.34]
[1745175284526,0.0485226,84399.0,84389.0,0.19876266]
[1745175284732,0.0001226,84399.0,84389.0,0.19876266]
[1745175288238,0.0001226,84399.0,84390.0,0.34]
[1745175293975,0.0001226,84399.0,84392.0,0.05]
[1745175294177,0.0001226,84399.0,84398.0,0.05]
[1745175294577,0.0001226,84399.0,84398.0,0.051]
[1745175295407,0.0001226,84399.0,84398.0,0.05085252]
[1745175296818,1e-08,84406.0,84403.0,0.01184792]
[1745175297188,1e-08,84408.0,84405.0,0.01184763]
[1745175297522,1e-08,84408.0,84405.0,0.01284763]
[1745175297958,1e-08,84408.0,84405.0,0.01184763]
[1745175298367,0.0008416,84425.0,84405.0,0.01184763]
[1745175298368,0.0008416,84425.0,84417.0,0.01184595]
[1745175298573,0.00010128,84419.0,84417.0,0.01184595]
[1745175301286,0.00010128,84419.0,84417.0,0.03895834]
[1745175307895,0.048,84418.0,84417.0,0.03895834]
[1745175311074,0.048,84418.0,84417.0,0.01184595]
[1745175311254,0.0941,84418.0,84417.0,0.01184595]
[1745175313508,0.21354791,84418.0,84417.0,0.01184595]
[1745175314068,0.1234095,84418.0,84414.0,0.01184637]
[1745175314247,0.0933,84416.0,84414.0,0.01184637]
[1745175314431,0.21570969,84415.0,84414.0,0.01184637]
[1745175314934,0.21670969,84415.0,84414.0,0.01184637]
[1745175317027,0.0933,84411.0,84395.0,0.02603282]
[1745175317377,0.0454,84407.0,84383.0,0.0008414]
[1745175317558,0.0454,84405.0,84392.0,0.026803]
[1745175317755,0.12241007,84404.0,84383.0,0.0008414]
[1745175318847,0.12241007,84404.0,84383.0,0.02781115]
[1745175319615,0.0946,84403.0,84383.0,0.02781115]
[1745175319817,0.12241007,84402.0,84383.0,0.02781115]
[1745175322399,0.0452,84401.0,84383.0,0.02781115]
[1745175322558,0.16464791,84401.0,84383.0,0.02781115]
[1745175327881,0.00296216,84400.0,84383.0,0.02781115]
[1745175328841,0.16464791,84401.0,84383.0,0.02781115]
[1745175332462,0.16464791,84401.0,84381.0,0.20732218]
[1745175334444,0.16464791,84401.0,84381.0,0.23396662]
[1745175342485,0.0452,84401.0,84381.0,0.23396662]
[1745175342659,0.0494,84403.0,84390.0,0.19876266]
[1745175346067,0.0494,84403.0,84391.0,0.34]
[1745175347562,0.00306345,84419.0,84391.0,0.45944791]
[1745175347766,0.0472,84411.0,84391.0,0.45944791]
[1745175347968,0.0472,84411.0,84401.0,0.34]
[1745175354804,0.0472,84411.0,84391.0,0.11944791]
[1745175355001,0.0472,84411.0,84400.0,0.19876266]
[1745175358362,0.0472,84411.0,84401.0,0.34]
[1745175361771,0.0472,84411.0,84401.0,0.34894528]
[1745175366526,0.0472,84411.0,84401.0,0.68792956]
[1745175367981,0.0474,84417.0,84401.0,0.80737747]
[1745175368180,0.00010128,84419.0,84401.0,0.80737747]
[1745175368181,0.00010128,84419.0,84407.0,0.19876266]
[1745175370390,0.00010128,84419.0,84408.0,0.34]
[1745175381207,0.0471,84418.0,84402.0,0.16930043]
[1745175381410,0.0471,84418.0,84409.0,0.19876266]
[1745175389402,0.0471,84418.0,84410.0,0.34]
[1745175392580,0.0471,84418.0,84410.0,0.30754718]
[1745175400269,0.0469,84417.0,84410.0,0.30754718]
[1745175400481,0.0467,84416.0,84410.0,0.30754718]
[1745175402684,0.0467,84416.0,84414.0,0.01184637]
[1745175434119,0.0467,84416.0,84414.0,0.00684637]
[1745175440005,0.050642,84424.0,84420.0,0.01184553]
[1745175440360,0.00088696,84423.0,84420.0,0.01184553]
[1745175445137,0.00088696,84423.0,84420.0,0.03321793]
[1745175445363,0.00088696,84423.0,84420.0,0.01184553]
[1745175446546,0.00088696,84423.0,84420.0,0.03305055]
[1745175450498,0.00088696,84423.0,84407.0,0.34]
[1745175450700,0.00088696,84423.0,84411.0,0.34]
[1745175451502,0.00088696,84423.0,84411.0,0.36092533]
[1745175453174,0.0461,84422.0,84411.0,0.02092533]
[1745175453543,0.0461,84422.0,84404.0,0.34]
[1745175453696,0.0461,84422.0,84404.0,0.45944791]
[1745175454096,0.0461,84422.0,84404.0,0.48063809]
[1745175457587,0.0461,84422.0,84405.0,0.33898428]
[1745175458462,0.0461,84422.0,84406.0,0.34]
[1745175463454,0.0461,84422.0,84406.0,0.67898428]
[1745175487783,0.0461,84422.0,84406.0,0.33898428]
[1745175491897,0.04906129,84421.0,84407.0,0.34]
[1745175492108,0.0458,84420.0,84407.0,0.34]
[1745175503070,0.0477,84418.0,84407.0,0.34]
[1745175503661,0.046,84417.0,84407.0,0.34]
[1745175504023,0.0465,84416.0,84407.0,0.34]
[1745175587131,0.0465,84416.0,84406.0,0.33898428]
[1745175590226,0.0465,84416.0,84407.0,0.34]
[1745175604734,0.0465,84416.0,84409.0,0.34]
[1745175604881,0.00088696,84423.0,84411.0,0.34]
[1745175605081,0.00088696,84423.0,84411.0,0.45944791]
[1745175609369,0.0491,84422.0,84411.0,0.45944791]
[1745175609988,0.0491,84422.0,84412.0,0.33898428]
[1745175627155,0.0491,84422.0,84413.0,0.34]
[1745175638134,0.00088696,84423.0,84413.0,0.34]
[1745175638135,0.0476,84420.0,84413.0,0.34]
[1745175638379,0.0948,84418.0,84413.0,0.34]
[1745175638611,0.0947,84418.0,84413.0,0.34]
[1745175638827,0.0947,84421.0,84413.0,0.34]
[1745175639029,0.0947,84419.0,84413.0,0.34]
[1745175639229,0.0947,84417.0,84413.0,0.34]
[1745175639408,0.0475,84416.0,84413.0,0.34]
[1745175641686,0.0475,84416.0,84415.0,0.01184623]
[1745175646642,0.04702616,84416.0,84415.0,0.01184623]
[1745175676935,0.04667071,84416.0,84415.0,0.01184623]
[1745175684697,0.04767071,84416.0,84415.0,0.01184623]
[1745175685143,0.04667071,84416.0,84415.0,0.01184623]
[1745175685679,0.04963236,84416.0,84415.0,0.01184623]
[1745175685901,0.05063236,84416.0,84415.0,0.01184623]
[1745175687033,0.04963236,84416.0,84415.0,0.01184623]
[1745175700087,0.0472779,84416.0,84415.0,0.01184623]
[1745175712259,0.0482779,84416.0,84415.0,0.01184623]
[1745175713554,0.0482779,84416.0,84393.0,0.20334587]
[1745175713743,0.0472779,84416.0,84394.0,0.11944791]
[1745175715703,0.0472779,84416.0,84394.0,0.13690981]
[1745175715919,0.0472779,84416.0,84395.0,0.34]
[1745175716118,0.0472779,84416.0,84397.0,0.34]
[1745175718291,0.00014748,84414.0,84397.0,0.34]
[1745175718431,0.0484,84413.0,84397.0,0.34]
[1745175718633,0.0029618,84412.0,84397.0,0.34]
[1745175722638,0.0513618,84411.0,84397.0,0.34]
[1745175730131,0.0513618,84411.0,84394.0,0.02681608]
[1745175730283,0.0482,84409.0,84394.0,0.02681608]
[1745175730495,0.00296188,84408.0,84393.0,0.20334587]
[1745175730682,0.00296188,84408.0,84393.0,0.32279378]
[1745175731292,0.00296188,84408.0,84393.0,0.34045609]
[1745175731495,0.0482,84407.0,84394.0,0.34]
[1745175731695,0.0482,84405.0,84394.0,0.34890403]
[1745175731917,0.002962,84404.0,84394.0,0.34890403]
[1745175732333,0.0482,84405.0,84394.0,0.34890403]
[1745175733374,0.00296196,84404.0,84394.0,0.34]
[1745175733582,0.048,84402.0,84393.0,0.22100818]
[1745175733780,0.048,84400.0,84394.0,0.34]
[1745175733956,0.00296229,84399.0,84394.0,0.34]
[1745175734816,0.00296229,84399.0,84393.0,0.01766231]
[1745175735019,0.00296229,84399.0,84382.0,0.20334587]
[1745175735365,0.00296229,84399.0,84382.0,0.32279378]
[1745175736373,0.00296229,84399.0,84382.0,0.34020823]
[1745175736666,0.00296229,84399.0,84382.0,0.34903067]
[1745175736889,0.05096229,84398.0,84382.0,0.34903067]
[1745175737343,0.048,84396.0,84382.0,0.34903067]
[1745175737574,0.048,84394.0,84382.0,0.34903067]
[1745175738687,0.04804791,84394.0,84383.0,0.34]
[1745175740204,0.00296229,84393.0,84383.0,0.34]
[1745175742442,0.04804791,84394.0,84383.0,0.34]
[1745175742638,0.00296238,84393.0,84383.0,0.34]
[1745175746601,0.0451,84392.0,84383.0,0.34]
[1745175759602,0.0497,84391.0,84383.0,0.34]
[1745175759810,0.0471,84390.0,84383.0,0.34]
[1745175774323,1e-08,84394.0,84384.0,0.32279378]
[1745175774696,1e-08,84394.0,84384.0,0.37119378]
[1745175775093,1e-08,84394.0,84385.0,0.3862]
[1745175775339,1e-08,84394.0,84387.0,0.34]
[1745175775510,1e-08,84394.0,84389.0,0.34]
[1745175775727,1e-08,84394.0,84391.0,0.34]
[1745175775930,1e-08,84394.0,84393.0,0.34]
[1745175776136,1e-08,84394.0,84393.0,0.45944791]
[1745175776312,1e-08,84394.0,84393.0,0.46044791]
[1745175780835,1e-08,84394.0,84393.0,0.29755431]
[1745175785922,1e-08,84394.0,84393.0,0.50090018]
[1745175793959,1e-08,84394.0,84393.0,0.49990018]
[1745175808230,1e-08,84394.0,84393.0,0.20334587]
[1745175810486,0.0469,84400.0,84393.0,0.20334587]
[1745175810689,0.0467,84407.0,84394.0,0.11944791]
[1745175810888,0.0491,84411.0,84397.0,0.39752532]
[1745175811103,0.0467,84417.0,84398.0,0.11944791]
[1745175811264,0.0467,84417.0,84407.0,0.19876266]
[1745175816605,0.0467,84417.0,84407.0,0.20779872]
[1745175819022,0.0467,84417.0,84408.0,0.34]
[1745175839032,0.0467,84417.0,84409.0,0.11944791]
[1745175842371,0.0467,84417.0,84408.0,0.34]
[1745175842583,0.01474411,84417.0,84414.0,0.01184637]
[1745175842801,0.000842,84424.0,84421.0,0.01184539]
[1745175843279,0.001842,84424.0,84421.0,0.01184539]
[1745175844457,0.001842,84424.0,84421.0,0.03238908]
[1745175844650,0.001842,84424.0,84421.0,0.01184539]
[1745175845060,0.001842,84424.0,84421.0,0.03223966]
[1745175845775,0.0473,84422.0,84421.0,0.03223966]
[1745175852089,0.0939,84422.0,84421.0,0.03223966]
[1745175852813,0.0939,84422.0,84410.0,0.25944396]
[1745175852995,0.0939,84422.0,84410.0,0.25954524]
[1745175853415,0.0939,84422.0,84410.0,0.27940564]
[1745175861895,0.047,84421.0,84410.0,0.08064298]
[1745175862113,0.04866159,84420.0,84410.0,0.08064298]
[1745175862281,0.047,84419.0,84410.0,0.01996168]
[1745175862502,0.04996159,84418.0,84410.0,0.01996168]
[1745175883132,0.0451,84416.0,84410.0,0.01996168]
[1745175885155,0.0451,84416.0,84400.0,0.19876266]
[1745175885358,0.0451,84416.0,84400.0,0.2074174]
[1745175885558,0.0029616,84415.0,84400.0,0.2074174]
[1745175886308,0.0461,84414.0,84400.0,0.2074174]
[1745175887882,0.0461,84414.0,84390.0,0.02079764]
[1745175888071,0.0476,84413.0,84391.0,0.34]
[1745175888274,0.0490619,84412.0,84391.0,0.34]
[1745175888435,0.0490619,84412.0,84391.0,0.34905822]
[1745175891588,0.0474,84411.0,84391.0,0.34905822]
[1745175891794,0.0482619,84410.0,84391.0,0.34905822]
[1745175892822,0.0453,84408.0,84391.0,0.34905822]
[1745175893052,0.00296191,84407.0,84391.0,0.34905822]
[1745175893279,0.0453,84406.0,84391.0,0.34905822]
[1745175897096,0.00296191,84405.0,84391.0,0.34905822]
[1745175897330,0.0453,84406.0,84391.0,0.34905822]
[1745175911733,0.0475,84404.0,84391.0,0.34905822]
[1745175913213,0.0488,84403.0,84391.0,0.34905822]
[1745175913407,0.0475,84402.0,84391.0,0.34905822]
[1745175923146,0.0475,84402.0,84391.0,0.00905822]
[1745175923500,0.0475,84402.0,84391.0,0.34]
[1745175926051,0.0475,84402.0,84391.0,0.34907404]
[1745175962375,0.0475,84402.0,84391.0,0.34833104]
[1745175969390,0.0475,84402.0,84391.0,0.18254359]
[1745175971664,0.04866202,84401.0,84390.0,0.02079764]
[1745175971847,0.0464,84400.0,84390.0,0.02079764]
[1745175972048,0.0486622,84399.0,84390.0,0.02079764]
[1745175972570,0.0457,84397.0,84390.0,0.02079764]
[1745175972794,0.0486623,84396.0,84390.0,0.02079764]
[1745175974906,0.0461,84395.0,84390.0,0.02079764]
[1745175975095,0.00014748,84391.0,84390.0,0.02079764]
[1745175975288,0.04524748,84391.0,84390.0,0.02079764]
[1745175975493,0.04624748,84391.0,84390.0,0.02079764]
[1745175976132,0.09234748,84391.0,84390.0,0.02079764]
[1745175985078,0.00014748,84401.0,84390.0,0.02079764]
[1745175985253,0.00014748,84395.0,84390.0,0.02079764]
[1745175987970,0.0484,84394.0,84390.0,0.02079764]
[1745176002845,0.0484,84394.0,84380.0,0.19960406]
[1745176003066,0.0484,84394.0,84380.0,0.19965197]
[1745176005113,0.0484,84394.0,84380.0,0.22230696]
[1745176028829,0.04854748,84394.0,84380.0,0.22230696]
[1745176030353,0.0473,84393.0,84380.0,0.22230696]
[1745176043179,0.0473,84393.0,84381.0,0.34]
[1745176052377,0.0473,84393.0,84380.0,0.0235443]
[1745176052523,0.0473,84393.0,84380.0,0.22230696]
[1745176054021,0.0473,84393.0,84381.0,0.34]
[1745176056549,0.0455,84392.0,84381.0,0.34]
[1745176094292,0.0455,84392.0,84380.0,0.0235443]
[1745176102100,0.0455,84392.0,84378.0,0.17152764]
[1745176102409,0.04554497,84392.0,84378.0,0.29097555]
[1745176103328,0.04554497,84392.0,84378.0,0.30976091]
[1745176111529,0.04554497,84392.0,84380.0,0.19876266]
[1745176119058,0.04554497,84392.0,84378.0,0.13823327]
[1745176125396,0.046,84390.0,84378.0,0.13823327]
[1745176137162,0.04856244,84389.0,84378.0,0.01878536]
[1745176137309,0.04856244,84389.0,84377.0,0.4118]
[1745176137670,0.04856244,84389.0,84377.0,0.4306265]
[1745176142644,0.0456,84389.0,84377.0,0.4306265]
[1745176151501,0.0456,84389.0,84378.0,0.34]
[1745176160464,0.0456,84389.0,84378.0,0.16146557]
[1745176165318,0.0456,84389.0,84379.0,0.34]
[1745176167951,0.0456,84389.0,84378.0,0.34]
[1745176174991,0.0456,84389.0,84378.0,0.18735909]
[1745176183095,0.04548409,84389.0,84378.0,0.18735909]
[1745176190733,0.04548409,84389.0,84377.0,0.0188265]
[1745176191207,0.04548409,84389.0,84376.0,0.0008414]
[1745176191390,0.04548409,84389.0,84376.0,0.12028931]
[1745176195973,0.04548409,84389.0,84377.0,0.34]
[1745176227697,4.497e-05,84392.0,84379.0,0.39752532]
[1745176227899,4.497e-05,84392.0,84380.0,0.11944791]
[1745176228858,4.497e-05,84392.0,84381.0,0.34]
[1745176229142,4.497e-05,84392.0,84383.0,0.34]
[1745176229390,4.497e-05,84392.0,84379.0,0.44372532]
[1745176229391,4.497e-05,84392.0,84385.0,0.34]
[1745176229579,4.497e-05,84392.0,84387.0,0.34]
[1745176229745,4.497e-05,84392.0,84389.0,0.34]
[1745176298302,4.497e-05,84392.0,84389.0,0.10162363]
[1745176299830,4.497e-05,84392.0,84390.0,0.00739012]
[1745176300335,4.497e-05,84392.0,84389.0,0.34]
[1745176305551,4.497e-05,84392.0,84388.0,0.11944791]
[1745176308631,4.497e-05,84392.0,84389.0,0.34]
[1745176311708,4.497e-05,84392.0,84390.0,0.00739012]
[1745176312078,4.497e-05,84392.0,84391.0,0.00739012]
[1745176312459,4.497e-05,84392.0,84389.0,0.34]
[1745176315635,4.497e-05,84392.0,84390.0,0.00739012]
[1745176316154,4.497e-05,84392.0,84391.0,0.00739012]
[1745176316660,4.497e-05,84392.0,84389.0,0.34]
[1745176329529,0.00072417,84392.0,84389.0,0.34]
[1745176330975,0.00072417,84392.0,84390.0,0.00739013]
[1745176331587,0.00072417,84392.0,84391.0,0.00739013]
[1745176332817,0.00072417,84392.0,84389.0,0.34]
[1745176333172,0.00072417,84392.0,84390.0,0.00739015]
[1745176333803,0.00072417,84392.0,84391.0,0.00739015]
[1745176334443,0.00072417,84392.0,84389.0,0.34]
[1745176335136,0.00072417,84392.0,84390.0,0.00739015]
[1745176335947,0.00072417,84392.0,84391.0,0.00739015]
[1745176339950,0.00072417,84392.0,84389.0,0.34]
[1745176340669,0.00072417,84392.0,84390.0,0.00739015]
[1745176341030,0.0498,84391.0,84390.0,0.00739015]
[1745176341232,0.0498,84391.0,84380.0,0.4118]
[1745176341435,0.0504792,84391.0,84381.0,0.11944791]
[1745176342723,0.0504792,84391.0,84382.0,0.34]
[1745176342944,0.0504792,84391.0,84384.0,0.34]
[1745176343150,0.0504792,84391.0,84384.0,0.45944791]
[1745176347335,0.0504792,84391.0,84380.0,0.4118]
[1745176347545,0.0478,84389.0,84380.0,0.4118]
[1745176347778,0.0478,84387.0,84380.0,0.4118]
[1745176348515,0.0484792,84387.0,84380.0,0.4118]
[1745176349057,0.0477,84385.0,84374.0,0.0008414]
[1745176349252,0.0477,84385.0,84376.0,0.1434035]
[1745176349630,0.0483792,84385.0,84376.0,0.1434035]
[1745176350586,0.0493,84381.0,84376.0,0.02395559]
[1745176350765,0.0477,84380.0,84376.0,0.02395559]
[1745176351610,0.0483792,84380.0,84376.0,0.02395559]
[1745176355498,0.0029628,84379.0,84376.0,0.02395559]
[1745176356797,0.003642,84379.0,84376.0,0.02395559]
[1745176391301,0.0453,84378.0,84376.0,0.02395559]
[1745176391478,0.00296298,84377.0,84376.0,0.02395559]
[1745176410266,0.00288147,84377.0,84376.0,0.02395559]
[1745176412047,0.00302895,84377.0,84376.0,0.02395559]
[1745176415137,0.00302895,84377.0,84376.0,0.02395559]
[1745176432440,0.04922895,84377.0,84376.0,0.02395559]
[1745176434039,0.04931048,84377.0,84376.0,0.0008414]
[1745176434895,0.04931048,84377.0,84376.0,0.01753161]
[1745176435204,0.04931048,84377.0,84376.0,0.0008414]
[1745176436109,0.04931048,84377.0,84376.0,0.01752333]
[1745176436317,0.04931048,84377.0,84376.0,0.0008414]
[1745176437191,0.04931048,84377.0,84376.0,0.01716687]
[1745176437616,0.04931048,84377.0,84376.0,0.0008414]
[1745176444125,0.22852583,84377.0,84376.0,0.0008414]
[1745176444300,0.23148913,84377.0,84376.0,0.0008414]
[1745176445329,0.66223041,84377.0,84376.0,0.0008414]
[1745176445532,0.65926668,84377.0,84376.0,0.0008414]
[1745176445945,0.64293624,84377.0,84376.0,0.0008414]
[1745176450010,0.64293624,84377.0,84373.0,0.0008418]
[1745176450011,0.0465,84376.0,84346.0,0.09692]
[1745176450182,0.0465,84374.0,84342.0,0.09692]
[1745176450379,0.12241182,84373.0,84342.0,0.09692]
[1745176451088,0.0465,84372.0,84342.0,0.09692]
[1745176451287,0.12241182,84371.0,84342.0,0.09692]
[1745176451493,0.0486,84370.0,84342.0,0.1133638]
[1745176451665,0.16891182,84369.0,84342.0,0.1133638]
[1745176452995,0.16891182,84369.0,84343.0,0.34]
[1745176465484,0.1245,84368.0,84343.0,0.34]
[1745176465687,0.16891182,84369.0,84343.0,0.34]
[1745176465688,0.12241181,84367.0,84343.0,0.34]
[1745176470851,0.12241181,84367.0,84343.0,0.33318502]
[1745176473360,0.12241181,84367.0,84342.0,0.0164438]
[1745176473862,0.12241181,84367.0,84340.0,0.06965297]
[1745176475932,0.12241181,84367.0,84340.0,0.08515476]
[1745176478134,0.12241181,84367.0,84340.0,0.42515476]
[1745176479074,0.12241181,84367.0,84340.0,0.35550179]
[1745176481907,0.0926,84366.0,84340.0,0.35550179]
[1745176482111,0.1224118,84365.0,84340.0,0.35550179]
[1745176483061,0.1224118,84365.0,84340.0,0.35595209]
[1745176488111,0.0457,84364.0,84340.0,0.35595209]
[1745176488244,0.00296388,84363.0,84340.0,0.35595209]
[1745176492037,0.0453,84362.0,84340.0,0.35595209]
[1745176492256,0.00296388,84361.0,84340.0,0.45287209]
[1745176493361,0.0499,84360.0,84340.0,0.45287209]
[1745176493564,0.00296388,84359.0,84340.0,0.45287209]
[1745176494575,0.00296388,84359.0,84340.0,0.35595209]
[1745176496470,0.00296388,84359.0,84340.0,0.55471475]
[1745176498332,0.00296388,84359.0,84340.0,0.19921296]
[1745176499568,0.00296388,84359.0,84340.0,0.21470538]
[1745176499945,0.00296388,84359.0,84341.0,0.00739448]
[1745176500368,0.00296388,84359.0,84342.0,0.00739448]
[1745176501207,0.00296388,84359.0,84343.0,0.00739448]
[1745176501522,0.00296388,84359.0,84344.0,0.00739448]
[1745176501940,0.00296388,84359.0,84345.0,0.00739448]
[1745176502342,0.00296388,84359.0,84346.0,0.00739448]
[1745176502569,0.00296388,84359.0,84347.0,0.00739448]
[1745176503054,0.00296388,84359.0,84348.0,0.00739448]
[1745176503496,0.00296388,84359.0,84349.0,0.00739448]
[1745176504109,0.00296388,84359.0,84350.0,0.00739448]
[1745176504719,0.00296388,84359.0,84351.0,0.00739448]
[1745176505564,0.00296388,84359.0,84352.0,0.00739448]
[1745176506306,0.091,84370.0,84353.0,0.00739448]
[1745176506530,0.0006792,84379.0,84361.0,0.0459]
[1745176506691,0.0006792,84379.0,84367.0,0.19876266]
[1745176507124,0.0006792,84379.0,84368.0,0.11944791]
[1745176508147,0.0006792,84379.0,84369.0,0.00739206]
[1745176508289,0.0006792,84379.0,84370.0,0.12683997]
[1745176508696,0.0006792,84379.0,84370.0,0.11944791]
[1745176517058,0.0006792,84379.0,84371.0,0.00739206]
[1745176517262,0.0006792,84379.0,84372.0,0.11944791]
[1745176517601,0.0006792,84379.0,84373.0,0.00739206]
[1745176518401,0.0006792,84379.0,84374.0,0.00739206]
[1745176519016,0.0006792,84379.0,84375.0,0.00739206]
[1745176519753,0.0006792,84379.0,84376.0,0.00739206]
[1745176520459,0.0006792,84379.0,84372.0,0.11944791]
[1745176521106,0.0006792,84379.0,84373.0,0.00739202]
[1745176521453,0.0006792,84379.0,84374.0,0.00739202]
[1745176522051,0.0006792,84379.0,84375.0,0.00739202]
[1745176522455,0.0006792,84379.0,84376.0,0.00739202]
[1745176522899,0.0006792,84379.0,84377.0,0.00739202]
[1745176523214,0.0006792,84379.0,84372.0,0.11944791]
[1745176524924,0.0006792,84379.0,84373.0,0.00739202]
[1745176525847,0.0006792,84379.0,84374.0,0.00739202]
[1745176526187,0.0006792,84379.0,84372.0,0.11944791]
[1745176526969,0.0006792,84379.0,84373.0,0.00739202]
[1745176528432,0.0006792,84379.0,84372.0,0.11944791]
[1745176529659,0.0006792,84379.0,84373.0,0.00739202]
[1745176529954,0.0006792,84379.0,84372.0,0.11944791]
[1745176529955,0.0006792,84379.0,84374.0,0.00739202]
[1745176530590,0.0006792,84379.0,84372.0,0.11944791]
[1745176531398,0.0006792,84379.0,84373.0,0.00739202]
[1745176531734,0.0006792,84379.0,84374.0,0.00739202]
[1745176532198,0.0006792,84379.0,84375.0,0.00739202]
[1745176532694,0.0006792,84379.0,84367.0,0.1116963]
[1745176532891,0.0006792,84379.0,84376.0,0.00739202]
[1745176533272,0.0006792,84379.0,84368.0,0.11944791]
[1745176544037,0.0006792,84379.0,84369.0,0.19876266]
[1745176544904,0.0006792,84379.0,84370.0,0.00739186]
[1745176545681,0.0006792,84379.0,84371.0,0.00739186]
[1745176545973,0.0006792,84379.0,84372.0,0.00739186]
[1745176546365,0.0006792,84379.0,84373.0,0.00739186]
[1745176546737,0.0006792,84379.0,84374.0,0.00739186]
[1745176547602,0.0006792,84379.0,84369.0,0.19876266]
[1745176547603,0.0006792,84379.0,84375.0,0.00739186]
[1745176547861,0.0006792,84379.0,84376.0,0.00739186]
[1745176548539,0.0456,84390.0,84377.0,0.00739186]
[1745176548743,0.0456,84390.0,84387.0,0.01185016]
[1745176549123,0.0466,84390.0,84388.0,0.00739186]
[1745176549666,0.0466,84390.0,84387.0,0.01185016]
[1745176549667,0.0466,84390.0,84389.0,0.00739186]
[1745176550881,0.0466,84390.0,84389.0,0.02696437]
[1745176551459,0.0961,84390.0,84389.0,0.02696437]
[1745176562106,0.0961,84390.0,84389.0,0.00739186]
[1745176564104,0.0951,84390.0,84389.0,0.00739186]
[1745176565224,0.000842,84399.0,84389.0,0.00739186]
[1745176565902,0.000842,84399.0,84390.0,0.00739186]
[1745176566264,0.000842,84399.0,84391.0,0.00739186]
[1745176566680,0.000842,84399.0,84388.0,0.01954841]
[1745176566681,0.000842,84399.0,84392.0,0.00739186]
[1745176567091,0.000842,84399.0,84393.0,0.00739186]
[1745176568135,0.000842,84399.0,84394.0,0.00739186]
[1745176568649,0.000842,84399.0,84395.0,0.00739186]
[1745176569122,0.000842,84399.0,84396.0,0.00739186]
[1745176569653,0.000842,84399.0,84397.0,0.00739186]
[1745176570138,0.000842,84399.0,84398.0,0.00739186]
[1745176570522,0.00380433,84399.0,84398.0,0.00739186]
[1745176570928,0.00380433,84399.0,84388.0,0.01969084]
[1745176571139,0.00380433,84399.0,84398.0,0.0073908]
[1745176571491,0.000842,84399.0,84398.0,0.0073908]
[1745176580382,0.00380431,84399.0,84398.0,0.0073908]
[1745176594841,0.00380431,84399.0,84380.0,0.04696315]
[1745176595049,0.00380431,84399.0,84380.0,0.19876266]
[1745176596231,0.00380431,84399.0,84380.0,0.2168691]
[1745176596485,0.000842,84399.0,84380.0,0.2168691]
[1745176596896,0.00296231,84398.0,84380.0,0.2168691]
[1745176597540,0.00307957,84398.0,84380.0,0.2168691]
[1745176602364,0.00307957,84398.0,84380.0,0.20361726]
[1745176602537,0.00307957,84398.0,84380.0,0.19876266]
[1745176604600,0.00307957,84398.0,84380.0,0.2170866]
[1745176607177,0.00307957,84398.0,84381.0,0.00739088]
[1745176607513,0.00307957,84398.0,84382.0,0.00739088]
[1745176607916,0.00307957,84398.0,84383.0,0.00739088]
[1745176608316,0.00307957,84398.0,84384.0,0.00739088]
[1745176608657,0.00307957,84398.0,84385.0,0.00739088]
[1745176609065,0.00307957,84398.0,84386.0,0.00739088]
[1745176609635,0.00307957,84398.0,84387.0,0.00739088]
[1745176610574,0.00307957,84398.0,84388.0,0.00739088]
[1745176610930,0.00307957,84398.0,84389.0,0.00739088]
[1745176611783,0.00307957,84398.0,84390.0,0.00739088]
[1745176612209,0.00307957,84398.0,84391.0,0.00739088]
[1745176612826,0.00307957,84398.0,84392.0,0.00739088]
[1745176613162,0.00307957,84398.0,84393.0,0.00739088]
[1745176614028,0.00307957,84398.0,84394.0,0.00739088]
[1745176614526,0.00307957,84398.0,84395.0,0.00739088]
[1745176615133,0.00307957,84398.0,84396.0,0.00739088]
[1745176615897,0.00307957,84398.0,84397.0,0.00739088]
[1745176627529,0.00307957,84398.0,84380.0,0.01759415]
[1745176627866,0.00307957,84398.0,84377.0,0.14678]
[1745176628067,0.00307957,84398.0,84378.0,0.11944791]
[1745176629956,0.00307957,84398.0,84378.0,0.21632791]
[1745176630738,0.00307957,84398.0,84379.0,0.00739088]
[1745176631104,0.00307957,84398.0,84380.0,0.00739088]
[1745176631758,0.00307957,84398.0,84381.0,0.00739088]